fUSD/lending_fUSD_20250514
["ID","MTS","AMOUNT","RATE_DAILY","PERIOD"]
[361014766,1747205456553,-93694.41772603,0.00011099,2]
[361014767,1747205456563,-93694.41772603,0.00011099,2]
[361014768,1747205456572,-93694.41772603,0.00011099,2]
[361014769,1747205456581,-93694.41772603,0.00011099,2]
[361014770,1747205456591,-199.370519,0.00011099,2]
[361014771,1747205456600,-199.370519,0.00011099,2]
[361014772,1747205456609,-199.370519,0.00011099,2]
[361014773,1747205456618,-199.370519,0.00011099,2]
[361014774,1747205456627,-151.5422993,0.00011099,2]
[361014775,1747205456636,-262.551324,0.00011099,2]
[361014776,1747205456646,-262.551324,0.00011099,2]
[361014777,1747205456655,-299.840888,0.00011099,2]
[361014778,1747205456664,-299.840888,0.00011099,2]
[361014779,1747205456673,-803.94,0.000111,2]
[361014780,1747205456682,-803.94,0.000111,2]
[361014781,1747205456691,-914.35,0.000111,2]
[361014782,1747205456948,-451.4,0.000111,2]
[361014783,1747205456960,-804.13,0.000111,2]
[361014784,1747205456969,-487.52,0.000111,2]
[361014785,1747205456990,-150.15,0.000111,2]
[361014786,1747205457000,-352.86,0.000111,2]
[361014787,1747205457009,-150.15,0.000111,2]
[361014788,1747205457019,-452.63,0.000111,2]
[361014789,1747205457028,-352.86,0.000111,2]
[361014790,1747205457038,-452.63,0.000111,2]
[361014791,1747205457048,-352.86,0.000111,2]
[361014792,1747205457057,-150.15,0.000111,2]
[361014793,1747205457066,-452.63,0.000111,2]
[361014794,1747205457076,-466.6,0.000111,2]
[361014795,1747205457085,-460.98,0.000111,2]
[361014796,1747205457095,-457.41,0.000111,2]
[361014797,1747205457105,-457.41,0.000111,2]
[361014798,1747205457116,-820.4,0.000111,2]
[361014799,1747205457126,-457.41,0.000111,2]
[361014800,1747205457136,-803.94,0.000111,2]
[361014801,1747205457145,-803.94,0.000111,2]
[361014802,1747205457155,-34100.2281785,0.00011124,2]
[361014803,1747205457164,-151.0,0.00011156,2]
[361014804,1747205457174,-151.0,0.00011156,2]
[361014805,1747205457183,-151.0,0.00011157,2]
[361014806,1747205457192,-239.72,0.00011158,2]
[361014807,1747205457202,-151.0,0.00011158,2]
[361014808,1747205457211,-151.0,0.00011158,2]
[361014809,1747205457221,-151.0,0.00011158,2]
[361014810,1747205457231,-151.0,0.00011158,2]
[361014811,1747205457241,-151.0,0.00011158,2]
[361014812,1747205457251,-151.0,0.00011158,2]
[361014813,1747205457469,-151.0,0.00011159,2]
[361014814,1747205457480,-421.21,0.000112,2]
[361014815,1747205457491,-803.94,0.000112,2]
[361014816,1747205457500,-803.94,0.000112,2]
[361014817,1747205457510,-172.85706745,0.0001121,2]
[361014818,1747205457520,-392.32042572,0.00011222,2]
[361014819,1747205457530,-5324.1220525,0.00011224,2]
[361014820,1747205457540,-1526.8334918,0.00011224,2]
[361014821,1747205457550,-3535.8421124,0.00011224,2]
[361014822,1747205457560,-4907.4805993,0.00011224,2]
[361014823,1747205457570,-179530.3971688,0.00011224,2]
[361014824,1747205457580,-300.0,0.00011231,2]
[361014825,1747205457590,-325.7611551,0.00011231,2]
[361014826,1747205457600,-199.370519,0.00011232,2]
[361014827,1747205457612,-199.370519,0.00011232,2]
[361014828,1747205457623,-151.0,0.00011232,2]
[361014829,1747205457632,-262.551324,0.00011232,2]
[361014830,1747205457641,-262.551324,0.00011232,2]
[361014831,1747205457651,-299.840888,0.00011232,2]
[361014832,1747205457660,-299.840888,0.00011232,2]
[361014833,1747205457671,-400.0,0.00011232,2]
[361014834,1747205457681,-400.0,0.00011232,2]
[361014835,1747205457691,-400.0,0.00011232,2]
[361014836,1747205457701,-400.0,0.00011232,2]
[361014837,1747205457711,-784.24,0.00011232,2]
[361014838,1747205457720,-400.0,0.00011232,2]
[361014839,1747205457729,-400.0,0.00011232,2]
[361014840,1747205457738,-400.0,0.00011232,2]
[361014841,1747205457747,-400.0,0.00011232,2]
[361014842,1747205457756,-400.0,0.00011232,2]
[361014843,1747205457765,-441.04565528,0.00011232,2]
[361014844,1747205457775,-400.0,0.00011232,2]
[361014845,1747205457785,-400.0,0.00011232,2]
[361014846,1747205457795,-548.92851461,0.00011232,2]
[361014847,1747205457805,-400.0,0.00011232,2]
[361014848,1747205457815,-400.0,0.00011232,2]
[361014849,1747205457824,-400.0,0.00011232,2]
[361014850,1747205457834,-400.0,0.00011232,2]
[361014851,1747205457844,-400.0,0.00011232,2]
[361014852,1747205457855,-400.0,0.00011232,2]
[361014853,1747205457865,-400.0,0.00011232,2]
[361014854,1747205457875,-400.0,0.00011232,2]
[361014855,1747205457885,-400.0,0.00011232,2]
[361014856,1747205457895,-400.0,0.00011232,2]
[361014857,1747205457906,-400.0,0.00011232,2]
[361014858,1747205457917,-400.0,0.00011232,2]
[361014859,1747205457927,-400.0,0.00011232,2]
[361014860,1747205457937,-400.0,0.00011232,2]
[361014861,1747205457948,-400.0,0.00011232,2]
[361014862,1747205457959,-936.13,0.00011232,2]
[361014863,1747205457968,-400.0,0.00011232,2]
[361014864,1747205457978,-502.17,0.00011232,2]
[361014865,1747205457990,-400.0,0.00011232,2]
[361014866,1747205458000,-291.6635103,0.00011232,2]
[361014867,1747205458010,-400.0,0.00011232,2]
[361014868,1747205458020,-400.0,0.00011232,2]
[361014869,1747205458030,-400.0,0.00011232,2]
[361014870,1747205458040,-188.65114575,0.00011232,2]
[361014871,1747205458050,-412.96069782,0.00011232,2]
[361014872,1747205458060,-400.0,0.00011232,2]
[361014873,1747205458070,-601.79,0.00011232,2]
[361014874,1747205458080,-400.0,0.00011232,2]
[361014875,1747205458090,-400.0,0.00011232,2]
[361014876,1747205458101,-194.851805,0.00011232,2]
[361014877,1747205458113,-400.0,0.00011232,2]
[361014878,1747205458123,-194.851805,0.00011232,2]
[361014879,1747205458133,-400.0,0.00011232,2]
[361014880,1747205458144,-450.62,0.00011232,2]
[361014881,1747205458154,-1229.31,0.00011232,2]
[361014882,1747205458164,-400.0,0.00011232,2]
[361014883,1747205458174,-1459.81,0.00011232,2]
[361014884,1747205458183,-400.0,0.00011232,2]
[361014885,1747205458192,-400.0,0.00011232,2]
[361014886,1747205458202,-459.08,0.00011232,2]
[361014887,1747205458212,-400.0,0.00011232,2]
[361014888,1747205458223,-400.0,0.00011232,2]
[361014889,1747205458234,-400.0,0.00011232,2]
[361014890,1747205458243,-400.0,0.00011232,2]
[361014891,1747205458253,-400.0,0.00011232,2]
[361014892,1747205458262,-400.0,0.00011232,2]
[361014893,1747205458272,-1024.96,0.00011232,2]
[361014894,1747205458282,-407.26,0.00011232,2]
[361014895,1747205458291,-400.0,0.00011232,2]
[361014896,1747205458300,-400.0,0.00011232,2]
[361014897,1747205458310,-151.0,0.00011232,2]
[361014898,1747205458319,-400.0,0.00011232,2]
[361014899,1747205458329,-400.0,0.00011232,2]
[361014900,1747205458339,-400.0,0.00011232,2]
[361014901,1747205458348,-400.0,0.00011232,2]
[361014902,1747205458358,-400.0,0.00011232,2]
[361014903,1747205458368,-400.0,0.00011232,2]
[361014904,1747205458377,-461.7,0.00011232,2]
[361014905,1747205458386,-413.60334501,0.00011232,2]
[361014906,1747205458395,-482.95,0.00011232,2]
[361014907,1747205458403,-760.04,0.00011232,2]
[361014908,1747205458412,-545.15,0.00011232,2]
[361014909,1747205458421,-3476.230224,0.00011232,2]
[361014910,1747205458429,-400.0,0.00011232,2]
[361014911,1747205458438,-400.0,0.00011232,2]
[361014912,1747205458447,-400.0,0.00011232,2]
[361014913,1747205458456,-400.0,0.00011232,2]
[361014914,1747205458465,-400.0,0.00011232,2]
[361014915,1747205458474,-400.0,0.00011232,2]
[361014916,1747205458483,-151.0,0.00011232,2]
[361014917,1747205458492,-400.0,0.00011232,2]
[361014918,1747205458502,-592.56,0.00011232,2]
[361014919,1747205458511,-546.68249145,0.00011232,2]
[361014920,1747205458521,-432.76783362,0.00011232,2]
[361014921,1747205458530,-151.0,0.00011232,2]
[361014922,1747205458540,-400.0,0.00011232,2]
[361014923,1747205458549,-1808.756094,0.00011232,2]
[361014924,1747205458559,-174.547771,0.00011232,2]
[361014925,1747205458568,-166.69986866,0.00011232,2]
[361014926,1747205458578,-901.81,0.00011232,2]
[361014927,1747205458587,-400.0,0.00011232,2]
[361014928,1747205458597,-400.0,0.00011232,2]
[361014929,1747205458606,-436.84,0.00011232,2]
[361014930,1747205458619,-471.1,0.00011232,2]
[361014931,1747205458629,-400.0,0.00011232,2]
[361014932,1747205458639,-400.0,0.00011232,2]
[361014933,1747205458648,-251.91451164,0.00011232,2]
[361014934,1747205458659,-354.032278,0.00011232,2]
[361014935,1747205458669,-2714.45228,0.00011232,2]
[361014936,1747205458678,-2714.45228,0.00011232,2]
[361014937,1747205458688,-354.032278,0.00011232,2]
[361014938,1747205458698,-400.0,0.00011232,2]
[361014939,1747205458707,-406.43664747,0.00011232,2]
[361014940,1747205458717,-400.0,0.00011232,2]
[361014941,1747205458726,-400.0,0.00011232,2]
[361014942,1747205458736,-400.0,0.00011232,2]
[361014943,1747205458747,-400.0,0.00011232,2]
[361014944,1747205458756,-400.0,0.00011232,2]
[361014945,1747205458765,-400.0,0.00011232,2]
[361014946,1747205458775,-400.0,0.00011232,2]
[361014947,1747205458785,-400.0,0.00011232,2]
[361014948,1747205458795,-400.0,0.00011232,2]
[361014949,1747205458805,-352.03180784,0.00011232,2]
[361014950,1747205458815,-400.0,0.00011232,2]
[361014951,1747205458824,-400.0,0.00011232,2]
[361014952,1747205458834,-400.0,0.00011232,2]
[361014953,1747205458842,-400.0,0.00011232,2]
[361014954,1747205458851,-400.0,0.00011232,2]
[361014955,1747205458860,-400.0,0.00011232,2]
[361014956,1747205458869,-310.53027077,0.00011232,2]
[361014957,1747205458878,-400.0,0.00011232,2]
[361014958,1747205458887,-566.44,0.00011232,2]
[361014959,1747205458895,-168.81924832,0.00011232,2]
[361014960,1747205458906,-571.46,0.00011232,2]
[361014961,1747205458917,-848.7,0.00011232,2]
[361014962,1747205458925,-400.0,0.00011232,2]
[361014963,1747205458934,-151.0,0.00011232,2]
[361014964,1747205458943,-400.0,0.00011232,2]
[361014965,1747205458954,-261.446253,0.00011232,2]
[361014966,1747205458963,-400.0,0.00011232,2]
[361014967,1747205458972,-400.0,0.00011232,2]
[361014968,1747205458983,-238.53229773,0.00011232,2]
[361014969,1747205458993,-400.0,0.00011232,2]
[361014970,1747205459003,-400.0,0.00011232,2]
[361014971,1747205459012,-595.75,0.00011232,2]
[361014972,1747205459022,-479.68,0.00011232,2]
[361014973,1747205459031,-417.31,0.00011232,2]
[361014974,1747205459040,-400.0,0.00011232,2]
[361014975,1747205459052,-400.0,0.00011232,2]
[361014976,1747205459061,-400.0,0.00011232,2]
[361014977,1747205459071,-634.89,0.00011232,2]
[361014978,1747205459081,-400.0,0.00011232,2]
[361014979,1747205459092,-400.0,0.00011232,2]
[361014980,1747205459106,-448.03,0.00011232,2]
[361014981,1747205459121,-400.0,0.00011232,2]
[361014982,1747205459141,-400.0,0.00011232,2]
[361014983,1747205459160,-151.0,0.00011232,2]
[361014984,1747205459185,-400.0,0.00011232,2]
[361014985,1747205459199,-400.0,0.00011232,2]
[361014986,1747205459216,-400.0,0.00011232,2]
[361014987,1747205459232,-400.0,0.00011232,2]
[361014988,1747205459247,-400.0,0.00011232,2]
[361014989,1747205459263,-215.437132,0.00011232,2]
[361014990,1747205459278,-400.0,0.00011232,2]
[361014991,1747205459293,-400.0,0.00011232,2]
[361014992,1747205459305,-483.7297181,0.00011232,2]
[361014993,1747205459320,-400.0,0.00011232,2]
[361014994,1747205459335,-400.0,0.00011232,2]
[361014995,1747205459350,-231.39940696,0.00011232,2]
[361014996,1747205459364,-467.63732359,0.00011232,2]
[361014997,1747205459380,-400.0,0.00011232,2]
[361014998,1747205459396,-845.67,0.00011232,2]
[361014999,1747205459412,-400.0,0.00011232,2]
[361015000,1747205459428,-400.0,0.00011232,2]
[361015001,1747205459445,-400.0,0.00011232,2]
[361015002,1747205459461,-687.51,0.00011232,2]
[361015003,1747205459476,-723.03,0.00011232,2]
[361015004,1747205459495,-466.98835499,0.00011232,2]
[361015005,1747205459510,-400.0,0.00011232,2]
[361015006,1747205459525,-400.0,0.00011232,2]
[361015007,1747205459537,-400.0,0.00011232,2]
[361015008,1747205459550,-400.0,0.00011232,2]
[361015009,1747205459564,-425.29783547,0.00011232,2]
[361015010,1747205459582,-400.0,0.00011232,2]
[361015011,1747205459594,-400.0,0.00011232,2]
[361015012,1747205459607,-544.933381,0.00011232,2]
[361015013,1747205459623,-400.0,0.00011232,2]
[361015014,1747205459643,-400.0,0.00011232,2]
[361015015,1747205459656,-400.0,0.00011232,2]
[361015016,1747205459671,-370.26781334,0.00011232,2]
[361015017,1747205459685,-477.27,0.00011232,2]
[361015018,1747205459700,-400.0,0.00011232,2]
[361015019,1747205459714,-400.0,0.00011232,2]
[361015020,1747205459727,-400.0,0.00011232,2]
[361015021,1747205459740,-400.0,0.00011232,2]
[361015022,1747205459753,-400.0,0.00011232,2]
[361015023,1747205459771,-400.0,0.00011232,2]
[361015024,1747205459784,-1060.8,0.00011232,2]
[361015025,1747205459797,-400.0,0.00011232,2]
[361015026,1747205459810,-206.95184098,0.00011232,2]
[361015027,1747205459822,-400.0,0.00011232,2]
[361015028,1747205459835,-506.07,0.00011232,2]
[361015029,1747205459847,-1391.86,0.00011232,2]
[361015030,1747205459861,-400.0,0.00011232,2]
[361015031,1747205459874,-1413.33,0.00011232,2]
[361015032,1747205459886,-400.0,0.00011232,2]
[361015033,1747205459899,-400.0,0.00011232,2]
[361015034,1747205459915,-400.0,0.00011232,2]
[361015035,1747205459929,-421.99,0.00011232,2]
[361015036,1747205459942,-400.0,0.00011232,2]
[361015037,1747205459955,-400.0,0.00011232,2]
[361015038,1747205459968,-533.66,0.00011232,2]
[361015039,1747205459980,-425.65525211,0.00011232,2]
[361015040,1747205459994,-400.0,0.00011232,2]
[361015041,1747205460007,-400.0,0.00011232,2]
[361015042,1747205460020,-420.41,0.00011232,2]
[361015043,1747205460033,-400.0,0.00011232,2]
[361015044,1747205460048,-400.0,0.00011232,2]
[361015045,1747205460061,-414.8516972,0.00011232,2]
[361015046,1747205460075,-285.34519356,0.00011232,2]
[361015047,1747205460089,-801.01,0.00011232,2]
[361015048,1747205460102,-400.0,0.00011232,2]
[361015049,1747205460115,-1450.44,0.00011232,2]
[361015050,1747205460126,-400.0,0.00011232,2]
[361015051,1747205460138,-400.0,0.00011232,2]
[361015052,1747205460149,-761.09,0.00011232,2]
[361015053,1747205460160,-400.0,0.00011232,2]
[361015054,1747205460172,-400.0,0.00011232,2]
[361015055,1747205460184,-400.0,0.00011232,2]
[361015056,1747205460195,-400.0,0.00011232,2]
[361015057,1747205460207,-1180.52,0.00011232,2]
[361015058,1747205460218,-470.82,0.00011232,2]
[361015059,1747205460230,-748.69,0.00011232,2]
[361015060,1747205460242,-426.12780813,0.00011232,2]
[361015061,1747205460255,-400.0,0.00011232,2]
[361015062,1747205460267,-400.0,0.00011232,2]
[361015063,1747205460278,-400.0,0.00011232,2]
[361015064,1747205460289,-722.42,0.00011232,2]
[361015065,1747205460301,-400.0,0.00011232,2]
[361015066,1747205460313,-400.0,0.00011232,2]
[361015067,1747205460325,-400.0,0.00011232,2]
[361015068,1747205460336,-400.0,0.00011232,2]
[361015069,1747205460348,-517.66,0.00011232,2]
[361015070,1747205460359,-400.0,0.00011232,2]
[361015071,1747205460371,-400.0,0.00011232,2]
[361015072,1747205460384,-400.0,0.00011232,2]
[361015073,1747205460395,-400.0,0.00011232,2]
[361015074,1747205460407,-305.16319516,0.00011232,2]
[361015075,1747205460419,-420.89,0.00011232,2]
[361015076,1747205460431,-956.25,0.00011232,2]
[361015077,1747205460444,-1225.03,0.00011232,2]
[361015078,1747205460456,-430.44,0.00011232,2]
[361015079,1747205460468,-400.0,0.00011232,2]
[361015080,1747205460480,-400.0,0.00011232,2]
[361015081,1747205460492,-400.0,0.00011232,2]
[361015082,1747205460504,-400.0,0.00011232,2]
[361015083,1747205460515,-493.31,0.00011232,2]
[361015084,1747205460526,-400.0,0.00011232,2]
[361015085,1747205460538,-400.0,0.00011232,2]
[361015086,1747205460549,-2604.52,0.00011232,2]
[361015087,1747205460560,-1479.2,0.00011232,2]
[361015088,1747205460572,-400.0,0.00011232,2]
[361015089,1747205460583,-400.0,0.00011232,2]
[361015090,1747205460595,-400.0,0.00011232,2]
[361015091,1747205460606,-400.0,0.00011232,2]
[361015092,1747205460618,-400.0,0.00011232,2]
[361015093,1747205460629,-658.26,0.00011232,2]
[361015094,1747205460640,-400.0,0.00011232,2]
[361015095,1747205460652,-400.0,0.00011232,2]
[361015096,1747205460663,-379.25579365,0.00011232,2]
[361015097,1747205460675,-400.0,0.00011232,2]
[361015098,1747205460687,-1004.65,0.00011232,2]
[361015099,1747205460699,-215.63845603,0.00011232,2]
[361015100,1747205460710,-458.91,0.00011232,2]
[361015101,1747205460722,-163.51246725,0.00011232,2]
[361015102,1747205460733,-400.0,0.00011232,2]
[361015103,1747205460745,-917.87,0.00011232,2]
[361015104,1747205460756,-455.01,0.00011232,2]
[361015105,1747205460768,-537.01520942,0.00011232,2]
[361015106,1747205460780,-1138.67,0.00011232,2]
[361015107,1747205460791,-421.99,0.00011232,2]
[361015108,1747205460802,-576.92,0.00011232,2]
[361015109,1747205460813,-400.0,0.00011232,2]
[361015110,1747205460824,-400.0,0.00011232,2]
[361015111,1747205460836,-400.0,0.00011232,2]
[361015112,1747205460848,-400.0,0.00011232,2]
[361015113,1747205460860,-1011.2,0.00011232,2]
[361015114,1747205460871,-482.53,0.00011232,2]
[361015115,1747205460883,-400.0,0.00011232,2]
[361015116,1747205460895,-400.0,0.00011232,2]
[361015117,1747205460908,-400.0,0.00011232,2]
[361015118,1747205460920,-400.0,0.00011232,2]
[361015119,1747205460931,-504.39,0.00011232,2]
[361015120,1747205460943,-400.0,0.00011232,2]
[361015121,1747205460955,-358.0,0.00011232,2]
[361015122,1747205460967,-1027.82,0.00011232,2]
[361015123,1747205460978,-400.0,0.00011232,2]
[361015124,1747205460990,-400.0,0.00011232,2]
[361015125,1747205461001,-400.0,0.00011232,2]
[361015126,1747205461013,-400.0,0.00011232,2]
[361015127,1747205461025,-488.58,0.00011232,2]
[361015128,1747205461037,-1246.29,0.00011232,2]
[361015129,1747205461048,-424.24,0.00011232,2]
[361015130,1747205461060,-400.0,0.00011232,2]
[361015131,1747205461071,-944.54,0.00011232,2]
[361015132,1747205461083,-545.26,0.00011232,2]
[361015133,1747205461094,-701.26,0.00011232,2]
[361015134,1747205461105,-400.0,0.00011232,2]
[361015135,1747205461119,-818.89,0.00011232,2]
[361015136,1747205461131,-400.0,0.00011232,2]
[361015137,1747205461143,-400.0,0.00011232,2]
[361015138,1747205461154,-511.88,0.00011232,2]
[361015139,1747205461166,-400.0,0.00011232,2]
[361015140,1747205461177,-400.0,0.00011232,2]
[361015141,1747205461189,-891.93,0.00011232,2]
[361015142,1747205461202,-400.0,0.00011232,2]
[361015143,1747205461214,-2475.45,0.00011232,2]
[361015144,1747205461226,-333.757507,0.00011232,2]
[361015145,1747205461237,-643.63,0.00011232,2]
[361015146,1747205461249,-740.14,0.00011232,2]
[361015147,1747205461261,-400.0,0.00011232,2]
[361015148,1747205461273,-508.68,0.00011232,2]
[361015149,1747205461285,-413.6386458,0.00011232,2]
[361015150,1747205461297,-400.0,0.00011232,2]
[361015151,1747205461308,-333.757507,0.00011232,2]
[361015152,1747205461319,-400.0,0.00011232,2]
[361015153,1747205461331,-1113.47,0.00011232,2]
[361015154,1747205461343,-400.0,0.00011232,2]
[361015155,1747205461354,-400.0,0.00011232,2]
[361015156,1747205461368,-429.12,0.00011232,2]
[361015157,1747205461381,-400.0,0.00011232,2]
[361015158,1747205461393,-400.0,0.00011232,2]
[361015159,1747205461404,-355.27,0.00011232,2]
[361015160,1747205461420,-400.0,0.00011232,2]
[361015161,1747205461433,-151.0,0.00011232,2]
[361015162,1747205461445,-400.0,0.00011232,2]
[361015163,1747205461457,-495.77,0.00011232,2]
[361015164,1747205461470,-400.0,0.00011232,2]
[361015165,1747205461481,-400.0,0.00011232,2]
[361015166,1747205461492,-1052.24,0.00011232,2]
[361015167,1747205461504,-400.0,0.00011232,2]
[361015168,1747205461517,-431.87708048,0.00011232,2]
[361015169,1747205461530,-879.2,0.00011232,2]
[361015170,1747205461543,-400.0,0.00011232,2]
[361015171,1747205461555,-400.0,0.00011232,2]
[361015172,1747205461566,-1657.0,0.00011232,2]
[361015173,1747205461578,-400.0,0.00011232,2]
[361015174,1747205461589,-400.0,0.00011232,2]
[361015175,1747205461601,-404.75,0.00011232,2]
[361015176,1747205461613,-400.0,0.00011232,2]
[361015177,1747205461624,-827.76,0.00011232,2]
[361015178,1747205461635,-400.0,0.00011232,2]
[361015179,1747205461647,-400.0,0.00011232,2]
[361015180,1747205461659,-400.0,0.00011232,2]
[361015181,1747205461670,-662.03,0.00011232,2]
[361015182,1747205461682,-839.99,0.00011232,2]
[361015183,1747205461695,-400.0,0.00011232,2]
[361015184,1747205461708,-783.38,0.00011232,2]
[361015185,1747205461721,-595.63,0.00011232,2]
[361015186,1747205461733,-400.0,0.00011232,2]
[361015187,1747205461746,-408.66,0.00011232,2]
[361015188,1747205461761,-400.0,0.00011232,2]
[361015189,1747205461776,-400.0,0.00011232,2]
[361015190,1747205461791,-400.0,0.00011232,2]
[361015191,1747205461805,-400.0,0.00011232,2]
[361015192,1747205461818,-400.0,0.00011232,2]
[361015193,1747205461833,-400.0,0.00011232,2]
[361015194,1747205461846,-400.0,0.00011232,2]
[361015195,1747205461864,-400.0,0.00011232,2]
[361015196,1747205461877,-2574.98,0.00011232,2]
[361015197,1747205461890,-400.0,0.00011232,2]
[361015198,1747205461903,-693.19,0.00011232,2]
[361015199,1747205461919,-400.0,0.00011232,2]
[361015200,1747205461932,-596.55,0.00011232,2]
[361015201,1747205461945,-1466.88,0.00011232,2]
[361015202,1747205461959,-400.0,0.00011232,2]
[361015203,1747205461973,-495.12,0.00011232,2]
[361015204,1747205461988,-400.0,0.00011232,2]
[361015205,1747205462001,-400.0,0.00011232,2]
[361015206,1747205462014,-1047.4,0.00011232,2]
[361015207,1747205462026,-400.0,0.00011232,2]
[361015208,1747205462039,-400.0,0.00011232,2]
[361015209,1747205462342,-591.29,0.00011232,2]
[361015210,1747205462351,-400.0,0.00011232,2]
[361015211,1747205462363,-578.9,0.00011232,2]
[361015212,1747205462374,-400.0,0.00011232,2]
[361015213,1747205462383,-1189.28,0.00011232,2]
[361015214,1747205462393,-400.0,0.00011232,2]
[361015215,1747205462403,-1444.51,0.00011232,2]
[361015216,1747205462413,-400.0,0.00011232,2]
[361015217,1747205462422,-408.57783914,0.00011232,2]
[361015218,1747205462431,-400.0,0.00011232,2]
[361015219,1747205462440,-400.0,0.00011232,2]
[361015220,1747205462450,-400.0,0.00011232,2]
[361015221,1747205462460,-151.0,0.00011232,2]
[361015222,1747205462469,-875.14,0.00011232,2]
[361015223,1747205462479,-420.5,0.00011232,2]
[361015224,1747205462489,-400.0,0.00011232,2]
[361015225,1747205462499,-1439.9,0.00011232,2]
[361015226,1747205462508,-3359.92,0.00011232,2]
[361015227,1747205462517,-400.0,0.00011232,2]
[361015228,1747205462527,-400.0,0.00011232,2]
[361015229,1747205462537,-936.75,0.00011232,2]
[361015230,1747205462547,-559.83,0.00011232,2]
[361015231,1747205462556,-400.0,0.00011232,2]
[361015232,1747205462566,-400.0,0.00011232,2]
[361015233,1747205462575,-400.0,0.00011232,2]
[361015234,1747205462585,-400.0,0.00011232,2]
[361015235,1747205462595,-400.0,0.00011232,2]
[361015236,1747205462605,-506.48,0.00011232,2]
[361015237,1747205462616,-400.0,0.00011232,2]
[361015238,1747205462626,-400.0,0.00011232,2]
[361015239,1747205462636,-400.0,0.00011232,2]
[361015240,1747205462646,-400.0,0.00011232,2]
[361015241,1747205462655,-400.0,0.00011232,2]
[361015242,1747205462665,-210.68402697,0.00011232,2]
[361015243,1747205462675,-400.0,0.00011232,2]
[361015244,1747205462685,-648.82,0.00011232,2]
[361015245,1747205462694,-400.0,0.00011232,2]
[361015246,1747205462703,-404.87886899,0.00011232,2]
[361015247,1747205462713,-466.52,0.00011232,2]
[361015248,1747205462723,-400.0,0.00011232,2]
[361015249,1747205462733,-400.0,0.00011232,2]
[361015250,1747205462742,-1817.12,0.00011232,2]
[361015251,1747205462752,-1028.23,0.00011232,2]
[361015252,1747205462761,-151.0,0.00011232,2]
[361015253,1747205462771,-1049.01,0.00011232,2]
[361015254,1747205462780,-400.0,0.00011232,2]
[361015255,1747205462790,-400.0,0.00011232,2]
[361015256,1747205462800,-400.0,0.00011232,2]
[361015257,1747205462810,-400.0,0.00011232,2]
[361015258,1747205462821,-490.46,0.00011232,2]
[361015259,1747205462830,-897.86,0.00011232,2]
[361015260,1747205462840,-400.0,0.00011232,2]
[361015261,1747205462851,-400.0,0.00011232,2]
[361015262,1747205462861,-400.0,0.00011232,2]
[361015263,1747205462871,-916.31,0.00011232,2]
[361015264,1747205462880,-1303.25,0.00011232,2]
[361015265,1747205462890,-574.8,0.00011232,2]